bitfinex-derivatives/quotes_ETHF0:USTF0_20230701
["timestamp","ask_amount","ask_price","bid_price","bid_amount"]
[1688175725767,10.72424558,1930.7,1930.6,4.97886]
[1688175726563,7.22972923,1930.7,1930.6,5.26557635]
[1688175726764,7.51644558,1930.7,1930.6,5.26557635]
[1688175728965,10.72424558,1930.7,1930.6,4.97886]
[1688175729273,3.98252441,1930.7,1930.6,4.97886]
[1688175732085,3.98252441,1930.7,1930.6,4.93386]
[1688175737885,10.74051321,1930.7,1930.6,4.623]
[1688175738387,3.98252441,1930.7,1930.6,4.623]
[1688175738589,3.98252441,1930.7,1930.6,4.93386]
[1688175739691,3.98252441,1930.7,1930.5,0.77718]
[1688175739692,8.63252441,1930.7,1930.5,0.77718]
[1688175739990,7.63442746,1930.6,1930.5,0.77718]
[1688175740192,7.80398512,1930.6,1930.5,0.77718]
[1688175740494,8.73384847,1930.6,1930.5,0.77718]
[1688175745395,8.73384847,1930.6,1930.4,5.40386814]
[1688175745600,3.2078,1930.5,1930.4,4.97888]
[1688175745897,10.56147969,1930.5,1930.4,4.97888]
[1688175746095,10.73123288,1930.5,1930.4,4.668]
[1688175746299,10.73123288,1930.5,1930.4,4.97887]
[1688175746595,10.73421911,1930.5,1930.4,4.97887]
[1688175746783,11.66107746,1930.5,1930.4,4.97887]
[1688175747587,4.90499412,1930.5,1930.4,4.97887]
[1688175748692,11.66107746,1930.5,1930.4,4.97887]
[1688175749896,4.90499412,1930.5,1930.4,4.97887]
[1688175751793,4.90499412,1930.5,1930.4,0.31087]
[1688175752593,4.90499412,1930.5,1930.3,5.04255208]
[1688175752799,5.52836412,1930.4,1930.2,4.9712]
[1688175753098,0.31091,1930.2,1930.1,10.37471]
[1688175753588,0.31384981,1930.2,1930.1,10.37471]
[1688175755397,0.31384981,1930.2,1930.1,10.78597538]
[1688175756098,0.31384981,1930.2,1930.1,11.07269173]
[1688175756792,0.00293981,1930.2,1930.1,11.17669173]
[1688175756993,3.2078,1930.5,1930.2,0.56748412]
[1688175757294,8.41374073,1930.6,1930.5,0.31086]
[1688175757295,6.75608334,1930.6,1930.5,0.31086]
[1688175757489,6.75608334,1930.6,1930.5,4.97186]
[1688175757699,6.75608334,1930.7,1930.5,5.25857635]
[1688175758002,6.75608334,1930.7,1930.6,4.668]
[1688175758188,7.75819475,1930.7,1930.6,4.97885]
[1688175758599,7.76105717,1930.7,1930.6,4.97885]
[1688175760304,7.47434082,1930.7,1930.6,4.97885]
[1688175760703,7.76105717,1930.7,1930.6,4.97885]
[1688175766602,7.45022717,1930.7,1930.6,4.97885]
[1688175766808,7.47435082,1930.7,1930.6,4.97885]
[1688175767908,7.76106717,1930.7,1930.6,4.97885]
[1688175769107,7.47435082,1930.7,1930.6,4.97885]
[1688175769808,7.76106717,1930.7,1930.6,4.97885]
[1688175772412,7.47435082,1930.7,1930.6,4.97885]
[1688175773010,7.47435082,1930.7,1930.6,5.54633412]
[1688175773211,7.3301021,1930.7,1930.6,5.53933412]
[1688175774413,7.6409621,1930.7,1930.6,5.53933412]
[1688175777116,7.3301021,1930.7,1930.6,5.53933412]
[1688175777313,6.92553704,1930.7,1930.6,5.53933412]
[1688175777813,0.25865206,1930.7,1930.6,5.53933412]
[1688175779809,0.85622841,1930.7,1930.6,4.97185]
[1688175780415,0.56951206,1930.7,1930.6,4.97185]
[1688175781215,0.56951206,1930.7,1930.6,5.38108788]
[1688175781811,0.54536841,1930.7,1930.6,5.38108788]
[1688175782317,0.25865206,1930.7,1930.6,5.38108788]
[1688175786415,0.54536841,1930.7,1930.6,5.38108788]
[1688175787215,0.25865206,1930.7,1930.6,5.38108788]
[1688175787416,0.54536841,1930.7,1930.6,5.3265255]
[1688175788722,0.78105082,1930.7,1930.6,4.91728762]
[1688175791531,5.43105082,1930.7,1930.4,1.19107485]
[1688175791829,3.2078,1930.5,1930.4,0.72480485]
[1688175792032,3.80540635,1930.5,1930.4,0.72480485]
[1688175792226,11.48769404,1930.5,1930.4,0.72480485]
[1688175792532,11.49055205,1930.5,1930.4,0.3109]
[1688175794025,4.73512271,1930.5,1930.4,0.3109]
[1688175795533,11.49055205,1930.5,1930.4,0.3109]
[1688175796140,11.49056205,1930.5,1930.4,0.3109]
[1688175796342,11.49056205,1930.5,1930.4,4.9499]
[1688175796539,1.24061636,1930.5,1930.4,5.23661635]
[1688175796843,1.21643271,1930.5,1930.4,5.23661635]
[1688175797041,0.92971636,1930.5,1930.4,5.23661635]
[1688175797241,1.52732271,1930.5,1930.4,5.23661635]
[1688175797448,4.73512271,1930.5,1930.4,4.9499]
[1688175800041,0.92971636,1930.5,1930.4,5.23661635]
[1688175800247,0.11634448,1930.5,1930.4,5.34061635]
[1688175802345,0.23883921,1930.5,1930.4,5.34061635]
[1688175802546,0.00285801,1930.5,1930.4,5.34061635]
[1688175802747,0.25767502,1930.5,1930.4,10.17651635]
[1688175803848,6.75542934,1930.8,1930.4,10.17651635]
[1688175804152,7.06627934,1930.8,1930.7,4.94986]
[1688175804453,7.35299569,1930.8,1930.7,4.94986]
[1688175804650,6.75818529,1930.8,1930.7,5.80406047]
[1688175805047,0.2894723,1930.8,1930.7,5.80406047]
[1688175805647,0.00275595,1930.8,1930.7,5.80406047]
[1688175805847,0.6003123,1930.8,1930.7,4.94986]
[1688175806044,0.6003123,1930.8,1930.7,0.31086]
[1688175807052,0.6003123,1930.8,1930.7,0.59757635]
[1688175807650,0.6003123,1930.8,1930.7,0.31086]
[1688175807955,0.2894723,1930.8,1930.7,0.31086]
[1688175808151,1.21633065,1930.8,1930.7,0.31086]
[1688175808744,0.2894723,1930.8,1930.7,0.31086]
[1688175808950,0.6003123,1930.8,1930.7,0.31086]
[1688175809955,0.00275595,1930.8,1930.7,5.22057635]
[1688175810557,9.96322934,1930.9,1930.7,5.22057635]
[1688175810760,3.2078,1930.9,1930.8,4.668]
[1688175810954,3.2078,1930.9,1930.8,4.97884]
[1688175811657,3.98604362,1930.9,1930.8,4.97884]
[1688175812256,10.74147296,1930.9,1930.8,4.97884]
[1688175813861,10.45475661,1930.9,1930.8,4.97884]
[1688175814058,3.69932727,1930.9,1930.8,4.97884]
[1688175814257,3.38849727,1930.9,1930.8,4.97884]
[1688175814461,0.18069727,1930.9,1930.8,5.54632412]
[1688175815158,0.49152727,1930.9,1930.8,5.54632412]
[1688175816860,3.98604362,1930.9,1930.8,4.97184]
[1688175817259,10.74147296,1930.9,1930.8,4.97184]
[1688175817861,3.98604362,1930.9,1930.8,4.97184]
[1688175818460,0.77824362,1930.9,1930.8,5.25855635]
[1688175819963,3.98604362,1930.9,1930.8,5.25855635]
[1688175820264,3.69932727,1930.9,1930.8,5.25855635]
[1688175821465,3.98604362,1930.9,1930.8,5.25855635]
[1688175821861,3.98604362,1930.9,1930.8,5.26555635]
[1688175822165,3.69932727,1930.9,1930.8,5.26555635]
[1688175825558,3.98604362,1930.9,1930.8,5.26555635]
[1688175825859,3.98604362,1930.9,1930.8,4.97884]
[1688175827666,3.98604362,1930.9,1930.8,5.26555635]
[1688175828762,3.98604362,1930.9,1930.8,4.97884]
[1688175829670,3.38849727,1930.9,1930.8,4.97884]
[1688175829861,3.69931727,1930.9,1930.7,0.87834412]
[1688175830173,3.69931727,1930.9,1930.7,4.94985]
[1688175830464,0.59755635,1930.8,1930.7,4.94985]
[1688175830667,0.28671635,1930.8,1930.7,5.23656635]
[1688175830868,0.13864677,1930.8,1930.7,5.23656635]
[1688175831269,4.55515666,1930.9,1930.7,5.23656635]
[1688175831467,0.13867159,1930.8,1930.7,5.23656635]
[1688175831770,0.31084,1930.8,1930.7,5.23656635]
[1688175831969,0.44952898,1930.8,1930.7,5.23656635]
[1688175832557,0.45228493,1930.8,1930.7,5.23656635]
[1688175833766,0.73900128,1930.8,1930.7,5.23656635]
[1688175834974,0.73900128,1930.8,1930.7,4.94985]
[1688175835367,0.73900128,1930.8,1930.7,4.639]
[1688175835573,0.68151346,1930.8,1930.6,5.03685874]
[1688175835864,4.08614412,1930.7,1930.6,4.93387]
[1688175836069,4.16977713,1930.7,1930.6,4.93387]
[1688175836564,4.17252491,1930.7,1930.6,4.93387]
[1688175838370,4.17252491,1930.7,1930.6,4.623]
[1688175839874,5.09938326,1930.7,1930.6,4.93387]
[1688175840874,5.09938326,1930.7,1930.6,4.623]
[1688175841575,5.09938326,1930.7,1930.6,4.93387]
[1688175841772,11.8548126,1930.7,1930.6,4.623]
[1688175842277,11.8548126,1930.7,1930.6,0.31087]
[1688175842572,11.8548126,1930.7,1930.5,5.86996772]
[1688175842777,0.28671635,1930.6,1930.5,5.86996772]
[1688175842974,0.59758635,1930.6,1930.5,5.86996772]
[1688175843567,0.60032596,1930.6,1930.5,5.86996772]
[1688175845775,7.3557553,1930.6,1930.5,5.40364772]
[1688175846778,0.60032596,1930.6,1930.5,5.40364772]
[1688175848668,0.60032596,1930.6,1930.5,5.09275772]
[1688175849182,0.60032596,1930.6,1930.5,5.40364772]
[1688175849779,0.60032596,1930.6,1930.5,5.09275772]
[1688175849985,5.25932596,1930.6,1930.5,0.42475772]
[1688175850170,12.94161365,1930.6,1930.5,0.42475772]
[1688175850476,12.94161365,1930.6,1930.4,0.3109]
[1688175850679,4.08617412,1930.5,1930.4,0.3109]
[1688175851675,4.0889136,1930.5,1930.4,0.3109]
[1688175862186,4.49948247,1930.5,1930.4,0.3109]
[1688175862385,5.42634082,1930.5,1930.4,0.3109]
[1688175865483,0.28671635,1930.4,1930.0,4.727]
[1688175865783,3.51875,1930.1,1930.0,5.04323078]
[1688175866090,4.37295047,1930.1,1930.0,4.623]
[1688175866602,9.03567796,1930.1,1929.9,4.7546]
[1688175866896,9.03567796,1930.1,1929.8,4.661]
[1688175867097,9.03567796,1930.1,1929.8,4.972]
[1688175867685,9.03567796,1930.1,1929.8,4.661]
[1688175867988,3.2078,1929.9,1929.8,4.972]
[1688175868197,4.37299047,1929.9,1929.8,4.972]
[1688175868587,4.37569372,1929.9,1929.8,4.972]
[1688175868788,4.37569372,1929.9,1929.8,5.39391197]
[1688175870088,4.37569372,1929.9,1929.8,5.08291197]
[1688175871897,4.37569372,1929.9,1929.8,5.39391197]
[1688175873088,9.04369372,1929.9,1929.8,0.73291197]
[1688175873400,9.97107157,1929.9,1929.8,0.73291197]
[1688175874303,9.04369372,1929.9,1929.8,0.73291197]
[1688175875792,3.8082096,1929.9,1929.8,5.64262832]
[1688175876401,3.8082096,1929.9,1929.8,5.35591197]
[1688175876697,3.8082096,1929.9,1929.8,5.5073012]
[1688175880194,3.8082096,1929.9,1929.8,5.79401755]
[1688175880598,3.8082096,1929.9,1929.8,5.5073012]
[1688175881303,0.31369325,1929.9,1929.8,5.89801755]
[1688175883300,3.2078,1930.1,1929.8,10.52801755]
[1688175883491,3.92963138,1930.3,1930.0,4.727]
[1688175883695,3.92963138,1930.3,1930.2,4.639]
[1688175883898,3.92963138,1930.3,1930.2,4.94994]
[1688175884097,3.92963138,1930.3,1930.2,5.06798389]
[1688175884304,3.80543635,1930.3,1930.2,5.06798389]
[1688175886796,3.80543635,1930.3,1930.2,4.75704389]
[1688175886999,3.80543635,1930.3,1930.2,5.06798389]
[1688175890307,8.46443635,1930.3,1930.2,0.11804389]
[1688175890501,8.46443635,1930.3,1930.0,14.4376]
[1688175890813,3.2078,1930.1,1930.0,14.4376]
[1688175891001,3.51875,1930.1,1930.0,14.4376]
[1688175891202,3.80546635,1930.1,1930.0,14.4376]
[1688175891510,3.80546635,1930.1,1930.0,14.55540381]
[1688175892008,3.80546635,1930.1,1930.0,14.86637381]
[1688175892210,3.80546635,1930.1,1930.0,10.22737381]
[1688175892809,3.80546635,1930.1,1930.0,9.91640381]
[1688175896508,3.80546635,1930.1,1930.0,10.22737381]
[1688175896713,3.80546635,1930.1,1930.0,9.91640381]
[1688175896923,3.80546635,1930.1,1930.0,5.13460381]
[1688175897309,3.80546635,1930.1,1930.0,0.11780381]
[1688175898010,8.46546635,1930.1,1930.0,0.11780381]
[1688175898420,8.46546635,1930.1,1929.8,15.30051197]
[1688175898718,3.51879,1929.9,1929.8,15.30051197]
[1688175898921,8.46550635,1929.9,1929.8,0.42191197]
[1688175899323,8.46550635,1929.9,1929.7,0.00777242]
[1688175899516,8.46550635,1929.9,1929.7,0.31879242]
[1688175899517,0.56748412,1929.8,1929.7,0.31879242]
[1688175899720,0.87848412,1929.8,1929.7,0.31879242]
[1688175899924,0.87848412,1929.8,1929.7,0.7267949]
[1688175900124,0.87848412,1929.8,1929.7,0.31879242]
[1688175900819,0.87848412,1929.8,1929.7,0.00777242]
[1688175901821,0.87848412,1929.8,1929.7,0.31879242]
[1688175902119,0.87848412,1929.8,1929.7,4.94179242]
[1688175902522,0.87848412,1929.8,1929.7,4.63077242]
[1688175903216,5.52848412,1929.8,1929.7,0.00777242]
[1688175904922,5.63048412,1929.8,1929.7,0.00777242]
[1688175905120,0.69973635,1929.7,1929.6,0.41107204]
[1688175905323,8.57553635,1929.7,1929.2,5.44573]
[1688175905522,3.2078,1929.3,1929.1,5.0577]
[1688175905724,3.2078,1929.3,1929.1,0.31111]
[1688175905725,5.26581635,1929.2,1929.1,0.31111]
[1688175905926,5.26581635,1929.2,1929.0,0.77782]
[1688175906230,0.41313,1929.0,1928.9,0.00777565]
[1688175906435,5.36784635,1929.0,1928.9,0.00777565]
[1688175906624,5.93533047,1929.0,1928.9,0.4202067]
[1688175906819,5.93533047,1929.0,1928.9,0.00777565]
[1688175908128,5.93533047,1929.0,1928.5,5.0577]
[1688175908432,7.8758,1928.6,1928.4,0.31123]
[1688175908731,1.16541047,1928.5,1928.4,0.72040926]
[1688175908930,1.16541047,1928.5,1928.4,0.31123]
[1688175909127,5.81541047,1928.5,1928.4,0.31123]
[1688175910326,0.93365,1928.8,1928.4,5.22094635]
[1688175910533,3.51894,1929.0,1928.7,4.668]
[1688175910732,0.31114,1929.0,1928.9,4.97914]
[1688175911229,0.59785635,1929.0,1928.9,0.31114]
[1688175912332,3.80565635,1929.0,1928.9,0.31114]
[1688175913631,0.31114,1929.0,1928.9,5.23685635]
[1688175915626,0.59785635,1929.0,1928.9,4.95014]
[1688175917727,0.59785635,1929.0,1928.9,0.31114]
[1688175918435,0.59785635,1929.0,1928.7,1.339187]
[1688175918436,5.25785635,1929.0,1928.7,0.405747]
[1688175918736,5.25785635,1929.0,1928.7,0.31118]
[1688175918737,4.96116,1928.8,1928.7,0.31118]
[1688175919036,5.24787635,1928.8,1928.7,0.31118]
[1688175920833,5.25787635,1928.8,1928.7,0.31118]
[1688175921335,5.25787635,1928.8,1928.7,0.69040212]
[1688175922040,0.59787635,1928.8,1928.7,0.69040212]
[1688175930340,0.59787635,1928.8,1928.7,0.97711847]
[1688175930540,0.41843229,1928.9,1928.8,0.56748412]
[1688175930735,0.3111,1929.2,1928.9,0.31114]
[1688175930944,0.3111,1929.2,1929.1,4.661]
[1688175931141,0.00777565,1929.3,1929.1,5.53958412]
[1688175931346,0.00777565,1929.3,1929.2,4.90971635]
[1688175931547,0.00777565,1929.3,1929.2,5.48660832]
[1688175933645,0.01207565,1929.3,1929.2,5.48660832]
[1688175934348,0.01207565,1929.3,1929.2,10.11660832]
[1688175937453,0.01207565,1929.3,1929.2,10.53434073]
[1688175938454,0.01207565,1929.3,1929.2,10.63834073]
[1688175938844,0.32315565,1929.3,1929.2,10.63834073]
[1688175939346,0.01207565,1929.3,1929.2,10.63834073]
[1688175941153,0.01207565,1929.3,1929.2,10.53434073]
[1688175945658,0.01207565,1929.3,1929.2,10.46512727]
[1688175948455,5.70968046,1929.8,1929.2,10.50312727]
[1688175948651,5.2379,1929.9,1929.8,4.651]
[1688175948855,0.40534854,1930.0,1929.8,13.66298047]
[1688175949060,0.40534854,1930.0,1929.9,4.623]
[1688175949260,0.40534854,1930.0,1929.9,4.93396]
[1688175949465,0.31870222,1930.1,1929.9,4.93396]
[1688175949759,0.31870222,1930.1,1930.0,5.47720047]
[1688175949969,0.31870222,1930.1,1930.0,5.78815047]
[1688175951457,0.73281123,1930.1,1930.0,5.78815047]
[1688175951658,0.31870222,1930.1,1930.0,5.78815047]
[1688175954466,0.00777222,1930.1,1930.0,5.78815047]
[1688175955163,0.00777222,1930.1,1930.0,8.99595047]
[1688175955766,0.09534702,1930.1,1930.0,8.99595047]
[1688175955954,0.09534702,1930.1,1930.0,4.93395]
[1688175955955,0.31873222,1930.1,1930.0,4.93395]
[1688175956770,0.01195294,1930.1,1930.0,5.78815047]
[1688175957466,0.01195294,1930.1,1930.0,6.20591236]
[1688175959065,0.07377294,1930.1,1930.0,6.20591236]
[1688175959366,0.09006775,1930.1,1930.0,6.20591236]
[1688175960457,0.40102775,1930.1,1930.0,9.12699601]
[1688175960661,0.40102775,1930.1,1930.0,5.35171189]
[1688175961274,0.40102775,1930.1,1930.0,5.63842824]
[1688175961670,0.40102775,1930.1,1930.0,6.20591236]
[1688175962266,0.09006775,1930.1,1930.0,6.20591236]
[1688175962462,0.40103775,1930.1,1930.0,6.20591236]
[1688175962670,0.40104775,1930.1,1930.0,6.20591236]
[1688175962870,0.40102775,1930.1,1930.0,6.20591236]
[1688175963070,0.40104775,1930.1,1930.0,6.20591236]
[1688175967974,0.40104775,1930.1,1930.0,5.35171189]
[1688175968779,0.40104775,1930.1,1930.0,5.63842824]
[1688175971076,0.40104775,1930.1,1930.0,5.35171189]
[1688175971474,0.32293294,1930.1,1930.0,5.35171189]
[1688175971677,0.32293294,1930.1,1930.0,0.31095]
[1688175976386,0.32293294,1930.1,1929.9,5.07493099]
[1688175976693,0.32293294,1930.1,1929.9,4.668]
[1688175976694,3.5188,1930.0,1929.9,4.668]
[1688175977693,3.52297775,1930.0,1929.9,4.668]
[1688175977993,3.52297775,1930.0,1929.8,5.38959815]
[1688175978491,5.05181,1929.9,1929.8,5.38959815]
[1688175978691,5.05598278,1929.9,1929.8,5.38959815]
[1688175980095,5.05598278,1929.9,1929.8,5.07858815]
[1688175980688,5.98405698,1929.9,1929.8,5.07858815]
[1688175981497,5.98405698,1929.9,1929.8,5.17335074]
[1688175982791,5.98405698,1929.9,1929.8,5.48437074]
[1688175983394,5.98405698,1929.9,1929.8,5.51175929]
[1688175986794,12.73948632,1929.9,1929.8,5.51175929]
[1688175989106,13.14797385,1929.9,1929.8,5.51175929]
[1688175993205,13.14797385,1929.9,1929.8,5.51176929]
[1688175994310,17.81597385,1929.9,1929.8,0.53973929]
[1688175994498,17.81597385,1929.9,1929.8,0.12992336]
[1688175994704,11.06054451,1929.9,1929.8,0.12992336]
[1688175995509,11.06054451,1929.9,1929.8,0.44094336]
[1688175996904,11.06054451,1929.9,1929.8,0.12992336]
[1688175998111,11.06054451,1929.9,1929.8,0.44094336]
[1688175998510,11.06054451,1929.9,1929.8,0.72765971]
[1688175999609,11.06054451,1929.9,1929.8,0.44094336]
[1688175999907,6.31974451,1929.9,1929.8,0.44094336]
[1688176000112,6.31974451,1929.9,1929.8,5.36665971]
[1688176000113,0.72367031,1929.9,1929.8,5.36665971]
[1688176001208,6.7530618,1929.9,1929.8,10.01765971]
[1688176001412,6.7530618,1929.9,1929.8,9.89550857]
[1688176001912,0.00417278,1929.9,1929.8,9.89550857]
[1688176004921,0.00417278,1929.9,1929.8,9.99950857]
[1688176007112,0.00417278,1929.9,1929.8,9.89550857]
[1688176008105,0.00417278,1929.9,1929.8,10.30860901]
[1688176009115,0.00417278,1929.9,1929.8,10.41260901]
[1688176009821,0.31519278,1929.9,1929.8,10.41260901]
[1688176010015,0.00417278,1929.9,1929.8,10.41260901]
[1688176013623,0.00417278,1929.9,1929.8,10.30860901]
[1688176015020,0.00417278,1929.9,1929.8,10.41260901]
[1688176015721,0.31516278,1929.9,1929.8,10.41260901]
[1688176016421,0.31516278,1929.9,1929.8,10.30860901]
[1688176021628,0.00417278,1929.9,1929.8,10.30860901]
[1688176022017,6.74888902,1930.0,1929.8,13.53340901]
[1688176022221,5.9886742,1930.3,1929.9,5.23548412]
[1688176022422,5.0606,1930.3,1930.2,4.661]
[1688176022720,5.0606,1930.3,1930.2,5.82615047]
[1688176023426,5.15061592,1930.3,1930.2,5.82615047]
[1688176024421,5.46155592,1930.3,1930.2,5.82615047]
[1688176025029,5.15061592,1930.3,1930.2,5.82615047]
[1688176029729,5.15465499,1930.3,1930.2,5.82615047]
[1688176030428,5.46559499,1930.3,1930.2,4.97195]
[1688176030733,5.37557907,1930.3,1930.2,4.661]
[1688176031228,5.37557907,1930.3,1930.2,4.97195]
[1688176032424,5.37557907,1930.3,1930.2,5.25866635]
[1688176032728,5.06463907,1930.3,1930.2,5.25866635]
[1688176032931,5.16969412,1930.3,1930.2,5.25866635]
[1688176037037,3.2078,1930.6,1930.3,4.63]
[1688176037237,8.25686,1930.8,1930.5,4.623]
[1688176037537,8.25686,1930.8,1930.7,4.639]
[1688176037738,8.25686,1930.8,1930.7,5.23658635]
[1688176038629,8.66983692,1930.8,1930.7,5.23658635]
[1688176038939,8.66983692,1930.8,1930.7,5.80407047]
[1688176041042,8.35897692,1930.8,1930.7,5.80407047]
[1688176044638,8.52948485,1930.8,1930.7,5.80407047]
[1688176045744,8.84034485,1930.8,1930.7,5.80407047]
[1688176046546,8.52948485,1930.8,1930.7,5.80407047]
[1688176049843,5.32168485,1930.8,1930.7,5.80407047]
[1688176050441,0.58348485,1930.8,1930.7,5.80407047]
[1688176052738,4.10213485,1930.8,1930.7,4.639]
[1688176053147,4.10213485,1930.8,1930.7,0.31087]
[1688176053336,5.03020905,1930.8,1930.7,0.31087]
[1688176055642,5.03020905,1930.8,1930.7,0.59758635]
[1688176056150,5.03020905,1930.8,1930.7,0.31087]
[1688176056350,5.03020905,1930.8,1930.6,4.639]
[1688176056647,5.03020905,1930.8,1930.6,0.31088]
[1688176056648,9.63110361,1930.8,1930.6,0.31088]
[1688176057047,9.63110361,1930.8,1930.5,5.43822]
[1688176057351,3.51868,1930.6,1930.5,5.43822]
[1688176057538,3.51868,1930.6,1930.5,4.661]
[1688176057745,3.52259401,1930.6,1930.5,4.9719]
[1688176059648,3.52259401,1930.6,1930.5,4.9499]
[1688176067157,3.58350387,1930.6,1930.5,4.9499]
[1688176067654,3.52259401,1930.6,1930.5,4.9499]
[1688176067951,3.52259401,1930.6,1930.5,4.639]
[1688176068151,3.52259401,1930.6,1930.5,4.9499]
[1688176072048,3.52259401,1930.6,1930.5,4.9789]
[1688176072447,3.52259401,1930.6,1930.5,5.26561635]
[1688176072955,3.52259401,1930.6,1930.5,4.9789]
[1688176076659,3.52259401,1930.6,1930.5,5.26561635]
[1688176079652,0.00391401,1930.6,1930.5,5.23661635]
[1688176079855,0.09141808,1930.6,1930.5,5.23661635]
[1688176080255,0.16798979,1930.6,1930.5,5.23661635]
[1688176081965,0.47886979,1930.6,1930.5,5.23661635]
[1688176082666,0.16798979,1930.6,1930.5,5.23661635]
[1688176086265,0.16798979,1930.6,1930.5,5.64192092]
[1688176089359,0.19702743,1930.6,1930.5,10.29292092]
[1688176089574,3.98488,1931.2,1930.5,10.86040504]
[1688176089575,12.34603661,1931.2,1930.5,10.86040504]
[1688176089771,11.41796241,1931.2,1931.1,4.668]
[1688176089959,11.41796241,1931.2,1931.1,4.9788]
[1688176090272,11.41796241,1931.2,1931.1,5.26551635]
[1688176090668,11.4217759,1931.2,1931.1,5.26551635]
[1688176093278,4.40594084,1931.2,1931.1,5.26551635]
[1688176096873,4.58122367,1931.2,1931.1,5.26551635]
[1688176098678,4.58122367,1931.2,1931.1,5.26550635]
[1688176099373,4.11492367,1931.2,1931.1,5.26550635]
[1688176100775,4.11492367,1931.2,1931.1,5.36950635]
[1688176100974,0.90712367,1931.2,1931.1,5.36950635]
[1688176102378,0.90712367,1931.2,1931.1,5.78111472]
[1688176103687,0.90712367,1931.2,1931.1,5.67711472]
[1688176110288,4.11492367,1931.2,1931.1,5.07960837]
[1688176110490,4.11492367,1931.2,1931.1,5.39040837]
[1688176110683,4.11492367,1931.2,1931.1,5.67712472]
[1688176112089,4.11492367,1931.2,1931.1,5.39040837]
[1688176112287,4.11492367,1931.2,1931.1,5.67712472]
[1688176114090,4.11492367,1931.2,1931.1,4.668]
[1688176114591,4.11492367,1931.2,1931.1,4.97882]
[1688176115988,4.11492367,1931.2,1931.1,5.26553635]
[1688176120492,3.93964084,1931.2,1931.1,5.26553635]
[1688176122199,3.93964084,1931.2,1931.1,5.22053635]
[1688176123895,3.93964084,1931.2,1931.1,4.93382]
[1688176124096,3.93964084,1931.2,1931.1,4.623]
[1688176127110,3.93964084,1931.2,1931.1,4.93381]
[1688176127311,3.93964084,1931.2,1931.1,4.623]
[1688176130503,8.58964084,1931.2,1930.5,1.5388637]
[1688176130808,8.58964084,1931.2,1930.4,5.44531]
[1688176130809,0.3109,1930.6,1930.4,5.44531]
[1688176131018,0.3109,1930.6,1930.5,0.59762635]
[1688176131406,0.3109,1930.6,1930.5,0.69537716]
[1688176131607,0.3146881,1930.6,1930.5,0.69537716]
[1688176131807,1.2427623,1930.6,1930.5,0.69537716]
[1688176132114,0.9318623,1930.6,1930.5,5.31837716]
[1688176132416,0.9280742,1930.9,1930.5,8.42842635]
[1688176132707,4.66106735,1931.2,1930.9,0.31084]
[1688176132913,4.66106735,1931.2,1931.1,4.661]
[1688176133506,4.66106735,1931.2,1931.1,4.97181]
[1688176133711,4.66474086,1931.2,1931.1,4.97181]
[1688176134511,3.62872086,1931.2,1931.1,4.93381]
[1688176135012,0.42092086,1931.2,1931.1,5.03781]
[1688176135206,0.5314514,1931.2,1931.1,5.03781]
[1688176135402,4.79688025,1931.6,1931.1,8.24561]
[1688176135609,4.79688025,1931.6,1931.4,4.668]
[1688176135610,5.52045013,1931.6,1931.4,4.668]
[1688176135803,0.426372,1931.5,1931.4,4.95471635]
[1688176136011,0.426372,1931.5,1931.4,5.52220047]
[1688176136810,0.115642,1931.5,1931.4,5.52220047]
[1688176137313,0.426382,1931.5,1931.4,5.52220047]
[1688176143608,0.42992245,1931.5,1931.4,5.52220047]
[1688176146213,0.42992245,1931.5,1931.4,4.668]
[1688176146408,0.42992245,1931.5,1931.3,14.4748]
[1688176146613,3.2078,1931.4,1931.3,14.76151635]
[1688176146920,3.62556122,1931.4,1931.3,14.76151635]
[1688176147310,3.62556122,1931.4,1931.3,15.07227635]
[1688176147505,3.62556122,1931.4,1931.3,15.07229635]
[1688176147719,3.62909515,1931.4,1931.3,15.07228635]
[1688176147913,3.62909515,1931.4,1931.3,14.76151635]
[1688176148123,3.62909515,1931.4,1931.3,15.07227635]
[1688176150825,3.62909515,1931.4,1931.3,15.48674298]
[1688176152521,8.28809515,1931.4,1931.3,0.41446663]
[1688176152923,8.28809515,1931.4,1931.1,4.639]
[1688176153125,7.8758,1931.2,1931.0,4.661]
[1688176153325,0.3108,1931.1,1931.0,4.661]
[1688176153626,0.31432109,1931.1,1931.0,4.661]
[1688176154015,0.31432109,1931.1,1931.0,4.94771635]
[1688176155534,4.97332109,1931.1,1930.7,1.56687022]
[1688176155836,0.31087,1930.7,1930.6,4.97888]
[1688176156028,0.31087,1930.7,1930.6,5.26559635]
[1688176156228,0.31087,1930.7,1930.6,5.68387221]
[1688176156730,0.31439859,1930.7,1930.6,5.68387221]
[1688176157330,0.31439859,1930.7,1930.6,5.08627586]
[1688176157636,0.31439859,1930.7,1930.6,0.41827586]
[1688176157831,1.24247279,1930.7,1930.6,0.41827586]
[1688176158032,1.24247279,1930.7,1930.5,4.668]
[1688176158222,3.2078,1930.6,1930.5,4.668]
[1688176158427,3.51868,1930.6,1930.5,4.668]
[1688176158829,3.52217573,1930.6,1930.5,4.668]
[1688176160328,3.52217573,1930.6,1930.5,5.09179369]
[1688176161028,3.52217573,1930.6,1930.5,5.37851004]
[1688176161228,3.52217573,1930.6,1930.5,5.09179369]
[1688176161442,3.52217573,1930.6,1930.5,5.25481274]
[1688176162028,8.28317573,1930.6,1930.5,0.58681274]
[1688176162232,8.28317573,1930.6,1930.5,0.65576347]
[1688176162832,3.62417573,1930.6,1930.5,5.32376347]
[1688176163439,3.62417573,1930.6,1930.5,5.63467347]
[1688176163641,3.62417573,1930.6,1930.5,5.32376347]
[1688176163832,3.62417573,1930.6,1930.5,5.63467347]
[1688176164540,3.62417573,1930.6,1930.5,5.92138982]
[1688176165741,3.62417573,1930.6,1930.5,5.63467347]
[1688176166330,3.52217573,1930.6,1930.5,5.92138982]
[1688176170945,3.21129573,1930.6,1930.5,5.92138982]
[1688176171335,0.00349573,1930.6,1930.5,5.92138982]
[1688176171538,0.00349573,1930.6,1930.5,5.85243909]
[1688176171844,0.41341191,1931.0,1930.6,0.56748412]
[1688176172041,0.41341191,1931.0,1930.9,4.668]
[1688176172241,13.3272,1931.1,1930.9,5.26556635]
[1688176172550,8.2139,1931.1,1931.0,4.668]
[1688176172844,8.2139,1931.1,1931.0,4.97884]
[1688176173029,8.52472,1931.1,1931.0,4.97884]
[1688176174735,8.94304626,1931.1,1931.0,4.97884]
[1688176179142,8.94304626,1931.1,1931.0,4.668]
[1688176179645,8.94645859,1931.1,1931.0,4.668]
[1688176180040,8.94645859,1931.1,1931.0,4.623]
[1688176182144,8.94645859,1931.1,1930.9,5.39209866]
[1688176182848,8.94645859,1931.1,1930.9,5.67881501]